bitfinex/quotes_BTCUSD_20220213
["timestamp","ask_amount","ask_price","bid_price","bid_amount"]
[1644733193813,0.249518,42279.0,42278.0,0.20617814]
[1644733196466,0.25238915,42279.0,42278.0,0.20617814]
[1644733199163,0.45328616,42279.0,42278.0,0.20617814]
[1644733200416,0.25238915,42279.0,42278.0,0.20617814]
[1644733202820,0.45328616,42279.0,42278.0,0.20617814]
[1644733203023,0.25238915,42279.0,42278.0,0.20617814]
[1644733203275,0.45328616,42279.0,42278.0,0.20617814]
[1644733204172,0.25238915,42279.0,42278.0,0.20617814]
[1644733204375,0.45331026,42279.0,42278.0,0.20617814]
[1644733204575,0.25238915,42279.0,42278.0,0.20617814]
[1644733206781,0.45331026,42279.0,42278.0,0.20617814]
[1644733210023,0.25238915,42279.0,42278.0,0.20617814]
[1644733211673,0.00287115,42279.0,42278.0,0.20617814]
[1644733213277,0.00287115,42279.0,42278.0,0.53687714]
[1644733213477,0.00287115,42279.0,42278.0,0.86817468]
[1644733213673,0.00287115,42279.0,42278.0,0.66694714]
[1644733214077,0.00287115,42279.0,42278.0,0.33624814]
[1644733214517,0.00287115,42279.0,42278.0,0.46048362]
[1644733214717,0.00287115,42279.0,42278.0,0.25927814]
[1644733216418,0.00214961,42279.0,42278.0,0.25927814]
[1644733219973,0.00214961,42279.0,42278.0,0.20617814]
[1644733224130,0.25166761,42279.0,42278.0,0.20617814]
[1644733225631,0.00214961,42279.0,42278.0,0.20617814]
[1644733228366,0.25166761,42279.0,42278.0,0.20617814]
[1644733233465,0.00214961,42279.0,42278.0,0.20617814]
[1644733238318,0.00214961,42279.0,42276.0,0.00060128]
[1644733238520,0.00214961,42279.0,42276.0,0.00019601]
[1644733238817,0.00214961,42279.0,42276.0,0.00060128]
[1644733239718,0.00214961,42279.0,42276.0,0.00019601]
[1644733239922,0.00214961,42279.0,42275.0,0.20159409]
[1644733240966,0.00214961,42279.0,42275.0,0.20122257]
[1644733241166,0.00214961,42279.0,42275.0,0.20159409]
[1644733241366,0.00214961,42279.0,42275.0,0.2017901]
[1644733241564,0.00214961,42279.0,42276.0,0.20122257]
[1644733241767,0.00214961,42279.0,42277.0,0.53192157]
[1644733241965,0.00214961,42279.0,42277.0,0.20141858]
[1644733242164,0.00214961,42279.0,42277.0,0.20122257]
[1644733242668,0.00214961,42279.0,42277.0,0.20141858]
[1644733243469,0.00214961,42279.0,42277.0,0.20122257]
[1644733243667,0.00214961,42279.0,42278.0,0.20122257]
[1644733244922,0.25126724,42287.0,42279.0,1.180699]
[1644733244923,0.20101379,42286.0,42279.0,1.180699]
[1644733245223,0.00037748,42287.0,42285.0,0.05]
[1644733245419,0.00037748,42287.0,42286.0,0.330699]
[1644733245820,0.20101379,42291.0,42285.0,0.13591634]
[1644733246021,0.00015125,42289.0,42285.0,0.13591634]
[1644733246420,0.00015125,42289.0,42284.0,0.20118603]
[1644733246720,0.00015125,42289.0,42283.0,0.20118603]
[1644733246919,0.20101379,42291.0,42283.0,0.20118603]
[1644733247121,0.25126724,42293.0,42282.0,0.20118603]
[1644733247122,0.00037779,42289.0,42282.0,0.20118603]
[1644733247321,0.00037779,42289.0,42281.0,0.20118603]
[1644733247520,0.20139158,42289.0,42281.0,0.20118603]
[1644733247920,0.00037779,42289.0,42281.0,0.20118603]
[1644733248121,0.20101379,42289.0,42282.0,0.08475252]
[1644733248373,0.00039649,42287.0,42283.0,0.26988989]
[1644733249272,0.2686303,42294.0,42282.0,0.08475252]
[1644733249273,0.20101379,42290.0,42282.0,0.08475252]
[1644733249471,0.00039649,42287.0,42280.0,0.4854244]
[1644733249671,0.00039649,42287.0,42280.0,0.28423837]
[1644733249872,0.00039649,42287.0,42279.0,0.20118603]
[1644733250275,0.00039649,42287.0,42280.0,0.20118603]
[1644733250474,0.20101379,42289.0,42279.0,0.20118603]
[1644733250674,0.00039584,42287.0,42279.0,0.20118603]
[1644733251373,0.00039584,42287.0,42282.0,0.00272728]
[1644733251774,0.26107441,42288.0,42282.0,0.00272728]
[1644733252018,0.00037366,42287.0,42282.0,0.00272728]
[1644733252217,0.00037366,42287.0,42282.0,0.00043457]
[1644733252923,0.26553831,42288.0,42282.0,0.00043457]
[1644733253118,0.00037366,42287.0,42282.0,0.00043457]
[1644733254119,0.20101379,42289.0,42282.0,0.00043457]
[1644733254320,0.00037366,42287.0,42282.0,0.00043457]
[1644733254923,0.00037366,42287.0,42286.0,0.21588203]
[1644733255322,0.20101379,42291.0,42286.0,0.21588203]
[1644733255524,0.00037771,42289.0,42286.0,0.21588203]
[1644733255972,0.00037771,42289.0,42286.0,0.47454312]
[1644733256570,0.00174238,42287.0,42286.0,0.47454312]
[1644733258075,0.00174238,42287.0,42286.0,0.21588203]
[1644733259923,0.00174238,42287.0,42282.0,0.23501494]
[1644733260122,0.00174238,42287.0,42281.0,0.48523018]
[1644733260324,0.00174238,42287.0,42280.0,0.20118603]
[1644733260524,0.00174238,42287.0,42279.0,0.20118603]
[1644733260923,0.00174238,42287.0,42280.0,0.2432291]
[1644733260924,0.00335073,42287.0,42280.0,0.2432291]
[1644733261123,0.00335073,42287.0,42281.0,0.22435024]
[1644733261525,0.00372777,42287.0,42281.0,0.22435024]
[1644733261725,0.00395775,42287.0,42281.0,0.22435024]
[1644733261927,0.00372777,42287.0,42281.0,0.22435024]
[1644733262530,0.00358071,42287.0,42281.0,0.22435024]
[1644733262729,0.00372788,42287.0,42283.0,0.08295924]
[1644733263277,0.00395786,42287.0,42282.0,0.2869667]
[1644733263470,0.00372788,42287.0,42281.0,0.22435024]
[1644733263669,0.00335073,42287.0,42281.0,0.22435024]
[1644733263871,0.00395786,42287.0,42281.0,0.22435024]
[1644733264070,0.00372788,42287.0,42281.0,0.22435024]
[1644733264471,0.00372788,42287.0,42282.0,0.06607597]
[1644733264671,0.00372788,42287.0,42282.0,0.35122476]
[1644733264872,0.00335073,42287.0,42282.0,0.35122476]
[1644733265073,0.00372788,42287.0,42282.0,0.06607597]
[1644733266073,0.00335073,42287.0,42282.0,0.06607597]
[1644733266274,0.00372786,42287.0,42282.0,0.06607597]
[1644733266472,0.00372786,42287.0,42282.0,0.34782463]
[1644733266671,0.00395784,42287.0,42282.0,0.34782463]
[1644733266876,0.00372786,42287.0,42282.0,0.34782463]
[1644733267121,0.00372786,42287.0,42282.0,0.06607597]
[1644733267321,0.00335073,42287.0,42282.0,0.06607597]
[1644733267523,0.00372786,42287.0,42281.0,0.22435024]
[1644733267724,0.00395784,42287.0,42281.0,0.22435024]
[1644733267925,0.00372786,42287.0,42281.0,0.22435024]
[1644733268123,0.00372786,42287.0,42281.0,0.42553627]
[1644733268530,0.00335073,42287.0,42281.0,0.29828706]
[1644733268725,0.00395784,42287.0,42281.0,0.29828706]
[1644733268928,0.00372786,42287.0,42281.0,0.58040246]
[1644733269127,0.00372786,42287.0,42281.0,0.29828706]
[1644733269627,0.00335073,42287.0,42281.0,0.29828706]
[1644733269827,0.00358071,42287.0,42281.0,0.29828706]
[1644733270028,0.00372786,42287.0,42281.0,0.56352762]
[1644733270229,0.00372786,42287.0,42281.0,0.76471365]
[1644733270871,0.00335073,42287.0,42281.0,0.76471365]
[1644733271075,0.00372786,42287.0,42281.0,0.76471365]
[1644733271277,0.00372786,42287.0,42282.0,0.20118603]
[1644733271670,0.00395784,42287.0,42282.0,0.20118603]
[1644733271871,0.00372786,42287.0,42282.0,0.20118603]
[1644733272071,0.00335073,42287.0,42282.0,0.20118603]
[1644733272474,0.00372787,42287.0,42282.0,0.20118603]
[1644733273072,0.00395785,42287.0,42282.0,0.20118603]
[1644733273273,0.00335073,42287.0,42282.0,0.20118603]
[1644733273674,0.00372786,42287.0,42282.0,0.20118603]
[1644733273875,0.00372786,42287.0,42281.0,0.49947309]
[1644733274638,0.00395784,42287.0,42281.0,0.49947309]
[1644733274838,0.00372786,42287.0,42281.0,0.49947309]
[1644733275037,0.00372786,42287.0,42281.0,0.76643406]
[1644733275637,0.0032773,42287.0,42281.0,0.76643406]
[1644733275838,0.00350728,42287.0,42281.0,0.76643406]
[1644733276037,0.00350728,42287.0,42281.0,0.49947309]
[1644733276038,0.00365443,42287.0,42281.0,0.49947309]
[1644733276241,0.00198548,42287.0,42283.0,0.00229732]
[1644733276839,0.00160835,42287.0,42283.0,0.00229732]
[1644733277243,0.00198549,42287.0,42283.0,0.00229732]
[1644733278042,0.00160835,42287.0,42283.0,0.00229732]
[1644733278474,0.00198549,42287.0,42283.0,0.00229732]
[1644733279371,0.00160835,42287.0,42283.0,0.00229732]
[1644733279571,0.00198549,42287.0,42283.0,0.00229732]
[1644733279775,0.00198549,42287.0,42284.0,0.330699]
[1644733280376,0.00198549,42287.0,42283.0,0.46445727]
[1644733280574,0.00160835,42287.0,42283.0,0.46445727]
[1644733280774,0.00160835,42287.0,42284.0,0.330699]
[1644733280974,0.00160835,42287.0,42283.0,0.47131892]
[1644733281174,0.00183833,42287.0,42283.0,0.47131892]
[1644733282022,0.00198549,42287.0,42284.0,0.20118603]
[1644733282224,0.00030554,42287.0,42284.0,0.20118603]
[1644733282423,0.00030554,42287.0,42283.0,0.210345]
[1644733282623,0.00030554,42287.0,42284.0,0.20118603]
[1644733282923,0.00022998,42292.0,42284.0,0.20118603]
[1644733283123,0.20101132,42293.0,42284.0,0.20118603]
[1644733283324,0.00022998,42292.0,42284.0,0.20118603]
[1644733283524,0.20101132,42293.0,42284.0,0.20118603]
[1644733283724,0.00022998,42292.0,42289.0,0.08606641]
[1644733284029,0.20101132,42293.0,42289.0,0.08606641]
[1644733284324,0.00022998,42292.0,42289.0,0.08606641]
[1644733284525,0.00038008,42293.0,42289.0,0.08606641]
[1644733284727,0.0001501,42293.0,42289.0,0.08606641]
[1644733285027,0.00038008,42293.0,42289.0,0.08606641]
[1644733285225,0.00022998,42294.0,42289.0,0.08606641]
[1644733285427,0.20101132,42295.0,42289.0,0.08606641]
[1644733285627,0.00041362,42293.0,42289.0,0.08606641]
[1644733285874,0.0006436,42293.0,42289.0,0.08606641]
[1644733286074,0.00041362,42293.0,42289.0,0.08606641]
[1644733286475,0.00022998,42293.0,42289.0,0.08606641]
[1644733286681,0.20129178,42295.0,42289.0,0.08606641]
[1644733286874,0.2010618,42295.0,42294.0,0.26155303]
[1644733287276,0.2010564,42295.0,42294.0,0.26155303]
[1644733287575,0.25132725,42296.0,42294.0,0.26155303]
[1644733287778,0.25155776,42296.0,42294.0,0.26155303]
[1644733288077,0.249518,42295.0,42294.0,0.26155303]
[1644733288277,0.25155776,42296.0,42294.0,0.26155303]
[1644733289179,0.25132725,42296.0,42294.0,0.26155303]
[1644733289377,0.25155776,42296.0,42294.0,0.26155303]
[1644733290425,0.25132725,42296.0,42294.0,0.26155303]
[1644733290627,0.25155776,42296.0,42294.0,0.26155303]
[1644733291025,0.25155776,42296.0,42294.0,0.26386001]
[1644733291729,0.25132725,42296.0,42294.0,0.26386001]
[1644733292126,0.25155776,42296.0,42294.0,0.26386001]
[1644733292527,0.50107576,42296.0,42294.0,0.26386001]
[1644733292729,0.249518,42295.0,42294.0,0.26386001]
[1644733292930,0.50107576,42296.0,42294.0,0.26386001]
[1644733293128,0.249518,42295.0,42294.0,0.26386001]
[1644733293378,0.25155776,42296.0,42294.0,0.26386001]
[1644733293778,0.50107576,42296.0,42294.0,0.26386001]
[1644733293976,0.50084525,42296.0,42294.0,0.26386001]
[1644733294380,0.50107576,42296.0,42294.0,0.26386001]
[1644733295177,0.50084525,42296.0,42294.0,0.26386001]
[1644733295379,0.25155776,42296.0,42294.0,0.00230698]
[1644733295782,0.24974851,42296.0,42294.0,0.00230698]
[1644733295981,0.24974851,42296.0,42289.0,0.08606641]
[1644733295982,0.50107576,42296.0,42289.0,0.08606641]
[1644733296182,0.20107228,42293.0,42288.0,0.00230991]
[1644733296885,0.20107228,42293.0,42290.0,0.21629893]
[1644733297728,0.20130279,42293.0,42290.0,0.21629893]
[1644733298732,0.20107228,42293.0,42290.0,0.21629893]
[1644733298932,0.20130279,42293.0,42290.0,0.21629893]
[1644733300032,0.20107228,42293.0,42290.0,0.21629893]
[1644733300433,0.20130279,42293.0,42290.0,0.21629893]
[1644733301073,0.20107228,42293.0,42291.0,0.00193845]
[1644733301473,0.20130279,42293.0,42291.0,0.00193845]
[1644733302277,0.20107228,42293.0,42291.0,0.00193845]
[1644733302875,0.20130279,42293.0,42291.0,0.00193845]
[1644733303676,0.20107228,42293.0,42291.0,0.00193845]
[1644733303878,0.20130279,42293.0,42291.0,0.00193845]
[1644733304724,0.20107228,42293.0,42291.0,0.00193845]
[1644733304925,0.20130279,42293.0,42291.0,0.00193845]
[1644733306021,0.20107228,42293.0,42291.0,0.00193845]
[1644733306222,0.20130279,42293.0,42291.0,0.00193845]
[1644733307228,0.20107228,42293.0,42291.0,0.00193845]
[1644733307430,0.20130279,42293.0,42291.0,0.00193845]
[1644733308480,0.20107228,42293.0,42291.0,0.00193845]
[1644733308680,0.20130279,42293.0,42291.0,0.00193845]
[1644733309680,0.20107228,42293.0,42291.0,0.00193845]
[1644733309881,0.20130279,42293.0,42291.0,0.00193845]
[1644733310887,0.20107228,42293.0,42291.0,0.00193845]
[1644733311086,0.20130279,42293.0,42291.0,0.00193845]
[1644733311887,0.20107228,42293.0,42291.0,0.00193845]
[1644733312327,0.20130279,42293.0,42288.0,0.20238773]
[1644733313126,0.20107228,42293.0,42288.0,0.20238773]
[1644733313326,0.20145035,42293.0,42288.0,0.20238773]
[1644733314327,0.20107228,42293.0,42288.0,0.20238773]
[1644733314527,0.20144984,42293.0,42288.0,0.20238773]
[1644733315331,0.20107228,42293.0,42288.0,0.20238773]
[1644733315779,0.20144984,42293.0,42288.0,0.20238773]
[1644733316579,0.00106679,42292.0,42288.0,0.2023228]
[1644733316780,0.0012973,42292.0,42288.0,0.2023228]
[1644733317180,0.0012973,42292.0,42289.0,0.330699]
[1644733317885,0.0012973,42292.0,42291.0,0.330699]
[1644733318082,0.00106679,42292.0,42291.0,0.330699]
[1644733319725,0.00106679,42292.0,42291.0,0.61000934]
[1644733320530,0.00106679,42292.0,42291.0,0.27931034]
[1644733320731,0.00106679,42292.0,42291.0,0.330699]
[1644733321227,0.00106679,42292.0,42291.0,0.61500853]
[1644733322930,0.00106679,42292.0,42291.0,0.28430953]
[1644733323300,0.00106679,42292.0,42291.0,0.61500853]
[1644733324591,0.00106679,42292.0,42291.0,0.330699]
[1644733326290,0.00106679,42292.0,42290.0,0.25141413]
[1644733326491,0.00106679,42292.0,42290.0,0.330699]
[1644733326492,0.0012973,42292.0,42290.0,0.330699]
[1644733333485,0.0012973,42292.0,42288.0,0.2023228]
[1644733334933,0.00167864,42292.0,42289.0,0.330699]
[1644733335136,0.00167864,42292.0,42288.0,0.2023228]
[1644733335836,0.00167864,42292.0,42287.0,0.25141413]
[1644733335837,0.0012973,42292.0,42287.0,0.25141413]
[1644733336043,0.0012973,42292.0,42283.0,0.25141413]
[1644733336044,0.249518,42291.0,42283.0,0.25141413]
[1644733336241,0.249518,42289.0,42281.0,0.05]
[1644733336439,0.0531,42288.0,42280.0,0.25141413]
[1644733336636,0.0531,42288.0,42279.0,0.25141413]
[1644733336835,0.0531,42288.0,42279.0,0.33091283]
[1644733337039,0.0531,42288.0,42279.0,0.55604455]
[1644733337338,0.05350223,42288.0,42279.0,0.55604455]
[1644733337738,0.05350223,42288.0,42279.0,0.30463042]
[1644733338140,0.28236704,42287.0,42279.0,0.30463042]
[1644733338378,0.33546704,42287.0,42279.0,0.30463042]
[1644733341282,0.33688157,42287.0,42279.0,0.30463042]
[1644733343129,0.05451453,42287.0,42281.0,0.2011033]
[1644733348185,0.05451453,42287.0,42279.0,0.55604455]
[1644733352836,0.26470831,42286.0,42279.0,0.55604455]
[1644733353037,0.26470831,42286.0,42279.0,0.30463042]
[1644733353283,0.00141453,42287.0,42280.0,0.20108658]
[1644733354483,0.00141453,42287.0,42279.0,0.505717]
[1644733355084,0.00141453,42287.0,42280.0,0.20108658]
[1644733358032,0.00141453,42287.0,42281.0,0.20108658]
[1644733358232,0.00141453,42287.0,42279.0,0.30463042]
[1644733358833,0.00141453,42287.0,42279.0,0.65604455]
[1644733361476,0.00141453,42287.0,42279.0,0.40463042]
[1644733362978,0.00141453,42287.0,42279.0,1.90904455]
[1644733363177,0.00141453,42287.0,42281.0,0.20106139]
[1644733363478,0.00141453,42287.0,42285.0,0.21607154]
[1644733363678,0.00141453,42287.0,42282.0,0.20106139]
[1644733363679,0.25874948,42283.0,42282.0,0.20106139]
[1644733363978,0.25874948,42283.0,42282.0,0.25084337]
[1644733365238,0.25874948,42283.0,42282.0,0.45190476]
[1644733366741,0.25874948,42283.0,42282.0,0.25084337]
[1644733368141,0.25874948,42283.0,42282.0,0.45193372]
[1644733369281,0.25874948,42283.0,42282.0,0.25084337]
[1644733369477,0.25874948,42283.0,42282.0,0.58154237]
[1644733369882,0.25874948,42283.0,42282.0,0.68154237]
[1644733370086,0.25874948,42283.0,42282.0,0.98325604]
[1644733370280,0.25874948,42283.0,42282.0,1.03635604]
[1644733370479,0.25874948,42283.0,42282.0,2.28935604]
[1644733370681,0.26303535,42283.0,42282.0,2.28926107]
[1644733371581,0.26303535,42283.0,42282.0,1.65694337]
[1644733372835,0.26303535,42283.0,42282.0,1.95858419]
[1644733373835,0.26303535,42283.0,42282.0,1.65694337]
[1644733375036,0.26303535,42283.0,42282.0,1.95860344]
[1644733376285,0.26303535,42283.0,42282.0,1.65694337]
[1644733376485,0.2619633,42283.0,42282.0,0.7056243]
[1644733377890,0.2619633,42283.0,42282.0,1.9586243]
[1644733378089,0.2619633,42283.0,42282.0,0.7056243]
[1644733378288,0.2619633,42283.0,42282.0,0.6056243]
[1644733378489,0.2619633,42283.0,42282.0,0.30394337]
[1644733379090,0.2619633,42283.0,42282.0,0.6056243]
[1644733380132,0.2619633,42283.0,42282.0,0.5525243]
[1644733380538,0.2619633,42283.0,42282.0,0.25084337]
[1644733381135,0.2619633,42283.0,42282.0,0.50227958]
[1644733381337,0.2619633,42283.0,42282.0,0.25084337]
[1644733381736,0.2619633,42283.0,42282.0,0.58154237]
[1644733381936,0.2619633,42283.0,42282.0,0.25084337]
[1644733382136,0.2619633,42283.0,42282.0,0.58154237]
[1644733382336,0.2619633,42283.0,42282.0,0.83298533]
[1644733383140,0.2619633,42283.0,42282.0,0.58154237]
[1644733383578,0.2619633,42283.0,42282.0,0.25084337]
[1644733383779,0.2619633,42283.0,42282.0,0.58154237]
[1644733384579,0.2619633,42283.0,42282.0,0.25084337]
[1644733384778,0.2619633,42283.0,42282.0,0.58154237]
[1644733384979,0.2619633,42283.0,42282.0,0.25084337]
[1644733385178,0.2619633,42283.0,42282.0,0.58154237]
[1644733385381,0.2619633,42283.0,42282.0,0.25084337]
[1644733385579,0.2619633,42283.0,42282.0,0.58154237]
[1644733385783,0.2619633,42283.0,42282.0,0.25084337]
[1644733385979,0.2619633,42283.0,42281.0,0.30168093]
[1644733386180,0.2619633,42283.0,42282.0,0.58214951]
[1644733386785,0.2619633,42283.0,42282.0,0.25145051]
[1644733388131,0.2619633,42283.0,42282.0,0.58214951]
[1644733388333,0.2619633,42283.0,42282.0,0.25145051]
[1644733388531,0.2619633,42283.0,42282.0,0.58214951]
[1644733388729,0.2619633,42283.0,42282.0,0.25145051]
[1644733388930,0.2619633,42283.0,42282.0,0.58214951]
[1644733389130,0.2619633,42283.0,42282.0,0.25145051]
[1644733389330,0.2619633,42283.0,42282.0,0.58214951]
[1644733389632,0.2619633,42283.0,42282.0,0.25145051]
[1644733389829,0.2619633,42283.0,42282.0,0.58214951]
[1644733390030,0.2619633,42283.0,42282.0,0.25145051]
[1644733390231,0.2619633,42283.0,42282.0,0.58214951]
[1644733390432,0.2619633,42283.0,42282.0,0.25145051]
[1644733390630,0.2619633,42283.0,42282.0,0.58214951]
[1644733390905,0.2619633,42283.0,42282.0,0.25145051]
[1644733392605,0.25980567,42283.0,42282.0,0.330699]
[1644733392805,0.25980567,42283.0,42282.0,0.58216514]
[1644733393807,0.25980567,42283.0,42281.0,0.25146614]
[1644733394007,0.25980567,42283.0,42282.0,0.330699]
[1644733396435,0.25980567,42283.0,42282.0,0.58216514]
[1644733396635,0.25980567,42283.0,42282.0,0.25146614]
[1644733396838,0.25980567,42283.0,42282.0,0.58216514]
[1644733397837,0.25980567,42283.0,42282.0,0.25146614]
[1644733398039,0.25980567,42283.0,42282.0,0.58216514]
[1644733398491,0.25980567,42283.0,42282.0,0.330699]
[1644733399087,0.25980567,42283.0,42281.0,0.25146614]
[1644733399488,0.25980567,42283.0,42280.0,0.25166136]
[1644733399689,0.25980567,42283.0,42280.0,0.25146614]
[1644733399990,0.25980567,42283.0,42282.0,0.20117895]
[1644733401191,0.26146518,42283.0,42282.0,0.20117895]
[1644733401792,0.26146518,42283.0,42281.0,0.330699]
[1644733402038,0.26146518,42283.0,42282.0,0.20117895]
[1644733402239,0.26146518,42283.0,42280.0,0.25166136]
[1644733402240,0.26146518,42283.0,42280.0,0.25146614]
[1644733402439,0.26146518,42283.0,42282.0,0.20117873]
[1644733402641,0.26146518,42283.0,42280.0,0.25166136]
[1644733402839,0.26146518,42283.0,42280.0,0.25146614]
[1644733406185,0.26146518,42283.0,42281.0,0.58216514]
[1644733406385,0.26146518,42283.0,42281.0,0.25146614]
[1644733407182,0.26146518,42283.0,42282.0,0.25146614]
[1644733407383,0.26146518,42283.0,42280.0,0.30168093]
[1644733407585,0.26146518,42283.0,42280.0,0.30187615]
[1644733407783,0.26146518,42283.0,42280.0,0.40187615]
[1644733408085,0.26146518,42283.0,42280.0,0.40168093]
[1644733408283,0.26146518,42283.0,42280.0,0.30168093]
[1644733408483,0.26146518,42283.0,42282.0,0.25145385]
[1644733410335,0.26146518,42283.0,42282.0,0.58215285]
[1644733410534,0.26146518,42283.0,42282.0,0.25145385]
[1644733413039,0.25874948,42283.0,42282.0,0.58215285]
[1644733413483,0.25874948,42283.0,42282.0,0.25145385]
[1644733416389,0.26143859,42283.0,42282.0,0.25145385]
[1644733417439,0.26143859,42283.0,42282.0,0.25147512]
[1644733419043,0.26143859,42283.0,42281.0,0.25167034]
[1644733419238,0.26143859,42283.0,42281.0,0.58217412]
[1644733419439,0.26143859,42283.0,42281.0,0.25147512]
[1644733419639,0.26143859,42283.0,42281.0,0.58217412]
[1644733419838,0.26143859,42283.0,42281.0,0.25147512]
[1644733421188,0.25874948,42283.0,42281.0,0.25147512]
[1644733422483,0.25874948,42283.0,42282.0,0.330699]
[1644733422685,0.25874948,42283.0,42280.0,0.30168093]
[1644733422883,0.25874948,42283.0,42281.0,0.63237993]
[1644733423284,0.25874948,42283.0,42282.0,0.330699]
[1644733425240,0.25874948,42283.0,42282.0,0.58222496]
[1644733425440,0.25874948,42283.0,42282.0,0.330699]
[1644733434644,0.2586578,42283.0,42282.0,0.330699]
[1644733439653,0.2586578,42283.0,42282.0,0.63237993]
[1644733444096,0.2586578,42283.0,42282.0,0.30168093]
[1644733444495,0.2586578,42283.0,42281.0,0.30168093]
[1644733444894,0.2586578,42283.0,42282.0,0.2515276]
[1644733445895,0.2586578,42283.0,42281.0,0.00019522]
[1644733446095,0.2586578,42283.0,42282.0,0.25153258]
[1644733447144,0.2586578,42283.0,42282.0,0.22653258]
[1644733449748,0.2586578,42283.0,42280.0,0.00019522]
[1644733449952,0.2586578,42283.0,42279.0,0.00019522]
[1644733450149,0.2586578,42283.0,42278.0,0.36933791]
[1644733450649,0.2586578,42283.0,42278.0,0.30187615]
[1644733450891,0.0531,42282.0,42278.0,0.30187615]
[1644733451091,0.31396956,42282.0,42278.0,0.30187615]
[1644733451291,0.0531,42282.0,42278.0,0.30187615]
[1644733451488,0.0531,42282.0,42278.0,0.30168093]
[1644733451690,0.0531,42282.0,42278.0,0.30187615]
[1644733451888,0.31406189,42282.0,42279.0,0.330699]
[1644733452090,0.31406189,42282.0,42279.0,0.00019522]
[1644733452290,0.31406189,42282.0,42279.0,0.330699]
[1644733452493,0.0531,42282.0,42280.0,0.330699]
[1644733452693,0.0531,42282.0,42280.0,0.33089422]
[1644733452894,0.0531,42282.0,42280.0,0.330699]
[1644733453093,0.0531,42282.0,42279.0,0.00019522]
[1644733453293,0.0531,42282.0,42278.0,0.30187615]
[1644733453593,0.0531,42282.0,42279.0,0.330699]
[1644733453793,0.2586578,42283.0,42280.0,0.35]
[1644733453995,0.31936764,42282.0,42280.0,0.00019522]
[1644733454194,0.31936764,42282.0,42280.0,0.330699]
[1644733454640,0.0531,42282.0,42280.0,0.330699]
[1644733454840,0.31535754,42282.0,42279.0,0.00019522]
[1644733455044,0.0531,42282.0,42279.0,0.330699]
[1644733455240,0.0531,42282.0,42279.0,0.33089422]
[1644733455439,0.0531,42282.0,42280.0,0.330699]
[1644733455640,0.31539685,42282.0,42280.0,0.00019522]
[1644733455840,0.31534805,42282.0,42279.0,0.00019522]
[1644733456042,0.26268115,42281.0,42280.0,0.25149523]
[1644733456243,0.26268115,42281.0,42280.0,0.58219423]
[1644733456441,0.26268115,42281.0,42280.0,0.58238945]
[1644733456643,0.26268115,42281.0,42280.0,0.25149523]
[1644733456843,0.26268115,42281.0,42279.0,0.25169045]
[1644733457045,0.26268115,42281.0,42280.0,0.20121037]
[1644733458599,0.2586578,42283.0,42280.0,0.20121037]
[1644733458799,0.302618,42282.0,42280.0,0.20140559]
[1644733458997,0.302618,42282.0,42280.0,0.00019522]
[1644733459197,0.0531,42282.0,42278.0,0.00019522]
[1644733459396,0.0531,42282.0,42277.0,0.20181386]
[1644733459596,0.0531,42282.0,42277.0,0.20121037]
[1644733460798,0.29692262,42281.0,42277.0,0.20121037]
[1644733461001,0.29692262,42281.0,42276.0,0.20121037]
[1644733462270,0.29692262,42281.0,42276.0,0.2016556]
[1644733463170,0.29692262,42281.0,42275.0,0.20140559]
[1644733463371,0.29692262,42281.0,42276.0,0.00044523]
[1644733463570,0.29692262,42281.0,42276.0,0.2016556]
[1644733463872,0.29692262,42281.0,42276.0,0.20185082]
[1644733464071,0.29692262,42281.0,42276.0,0.2016556]
[1644733464477,0.21524654,42279.0,42275.0,0.20140559]
[1644733464674,0.21524654,42279.0,42276.0,0.00044523]
[1644733464675,0.56059276,42278.0,42276.0,0.00044523]
[1644733464874,0.55796774,42277.0,42276.0,0.00044523]
[1644733465573,0.249518,42276.0,42275.0,0.00019522]
[1644733465795,0.28925507,42276.0,42274.0,0.00064046]
[1644733466392,0.249518,42275.0,42274.0,0.00064046]
[1644733466792,0.249518,42275.0,42274.0,0.00019522]
[1644733466992,0.28925507,42276.0,42273.0,0.20121037]
[1644733467193,0.28925507,42276.0,42273.0,0.00019522]
[1644733467394,0.28925507,42276.0,42272.0,0.20185084]
[1644733467594,0.28925507,42276.0,42272.0,0.00064047]
[1644733468093,0.28925507,42276.0,42272.0,0.00019522]
[1644733468296,0.28925507,42276.0,42272.0,0.20165562]
[1644733468495,0.28925507,42276.0,42272.0,0.20185084]
[1644733469095,0.28925507,42276.0,42272.0,0.00019522]
[1644733469295,0.28925507,42276.0,42271.0,0.2043822]
[1644733469539,0.28925507,42276.0,42272.0,0.00044525]
[1644733469737,0.28925507,42276.0,42272.0,0.00064047]
[1644733470138,0.28925507,42276.0,42272.0,0.20185084]
[1644733470346,0.28925507,42276.0,42272.0,0.20140559]
[1644733470539,0.28925507,42276.0,42272.0,0.20181085]
[1644733471142,0.27798507,42276.0,42272.0,0.20181085]
[1644733471342,0.27798507,42276.0,42272.0,0.00060048]
[1644733471541,0.27798507,42276.0,42272.0,0.20181085]
[1644733471742,0.21524654,42279.0,42272.0,0.20181085]
[1644733472743,0.21524654,42279.0,42272.0,0.20140559]
[1644733473144,0.27712907,42278.0,42272.0,0.20140559]
[1644733473391,0.21524654,42279.0,42272.0,0.20140559]
[1644733474490,0.27822674,42278.0,42272.0,0.20140559]
[1644733474891,0.21524654,42279.0,42272.0,0.20140559]
[1644733475498,0.21524654,42279.0,42273.0,0.0004452]
[1644733475691,0.28725114,42278.0,42273.0,0.00064042]
[1644733476392,0.28725114,42278.0,42272.0,0.00019522]
[1644733476595,0.28725114,42278.0,42273.0,0.0004452]
[1644733477039,0.249518,42277.0,42273.0,0.0004452]
[1644733477236,0.28725114,42278.0,42273.0,0.0004452]
[1644733477637,0.32102357,42282.0,42272.0,0.20140559]
[1644733477838,0.32102357,42282.0,42273.0,0.0004452]
[1644733478240,0.32102357,42282.0,42273.0,0.00064042]
[1644733478738,0.249518,42281.0,42273.0,0.00019522]
[1644733478939,0.32102357,42282.0,42275.0,0.00044519]
[1644733479138,0.249518,42281.0,42275.0,0.00044519]
[1644733479939,0.249518,42281.0,42273.0,0.00019522]
[1644733480141,0.32102357,42282.0,42276.0,0.00044518]
[1644733480341,0.249518,42281.0,42276.0,0.00044518]
[1644733481288,0.32102357,42282.0,42273.0,0.00019522]
[1644733481485,0.32102357,42282.0,42276.0,0.00044518]
[1644733481687,0.249518,42281.0,42276.0,0.00044518]
[1644733482585,0.32102357,42282.0,42276.0,0.00044518]
[1644733482788,0.249518,42281.0,42276.0,0.00044518]
[1644733483588,0.249518,42281.0,42273.0,0.00019522]
[1644733483787,0.32102357,42282.0,42276.0,0.00044518]
[1644733483989,2.101e-05,42273.0,42272.0,0.20121037]
[1644733484189,2.101e-05,42273.0,42271.0,0.2043822]
[1644733484739,2.101e-05,42273.0,42271.0,0.00317183]
[1644733484939,2.101e-05,42273.0,42271.0,0.2043822]
[1644733487442,0.00044512,42280.0,42271.0,0.2043822]
[1644733488490,0.63069846,42282.0,42271.0,0.2043822]
[1644733488691,0.00044513,42280.0,42273.0,0.0004452]
[1644733489692,0.58069846,42282.0,42271.0,0.2043822]